Cogmind - Beta 13 @@@ ROGUE MODE // 2024.04.05 @ 17:15:04 Player: Olafz Result: Destroyed by S-27 Virus with Autogun Performance ------------- Evolutions (1) 500 Regions Visited (5) 1000 Robots Destroyed (30) 150 Value Destroyed (781) 781 Prototype IDs (5) 100 Alien Tech Used (0) 0 Bonus (676) 676 TOTAL SCORE: 3207 Bonus ------- Follower Combat Kills 76 Met Imprinter 300 Was Imprinted 300 Cogmind --------- Core Integrity 0/400 Matter 300/300 Energy 100/100 System Corruption 0% Temperature Cool (0) Movement Walking (190) Ox1 Location -6/Proximity Caves Parts ------- > --- POWER (1) -------- (None) > --- PROPULSION (2) --- Aluminum Leg > --- UTILITY (4) ------ Medium Storage Unit 0b10 Decoder Chip [Generic] 0b10 Decoder Chip [Scout] 0b10 Decoder Chip [Skirmisher] > --- WEAPON (2) ------- Makeshift Hammer CR-A16's Pointy Stick > --- INVENTORY (10) --- Ion Engine Ion Engine Ion Engine Improved Ion Engine Advanced Visual Processing Unit 0b10 Decoder Chip [Generic] 0b10 Decoder Chip [Looter] 0b10 Decoder Chip [Scout] Heavy Assault Rifle RU-N14's Throwing Claymores (2) Peak State ------------ > --- POWER ------------ Improved Ion Engine > --- PROPULSION ------- Aluminum Leg Aluminum Leg > --- UTILITY ---------- Medium Storage Unit 0b10 Decoder Chip [Generic] 0b10 Decoder Chip [Scout] 0b10 Decoder Chip [Skirmisher] > --- WEAPON ----------- RU-N14's Throwing Claymores CR-A16's Pointy Stick > --- INVENTORY -------- Ion Engine Ion Engine Ion Engine 0b10 Decoder Chip [Looter] 0b10 Decoder Chip [Scout] Heavy Assault Rifle Mining Laser RU-N14's Throwing Claymores RU-N14's Throwing Claymores [Rating: 34] Favorites ----------- Power Improved Ion Engine Engine Improved Ion Engine Propulsion Aluminum Leg Treads Light Treads Leg Aluminum Leg Utility Medium Storage Unit Device Hacking Drone Bay Storage Medium Storage Unit Processor Visual Processing Unit Protection Light Armor Plating Weapon RU-N14's Throwing Claymores Energy Gun EM Pulse Gun Ballistic Gun Heavy Assault Rifle Special Weapon RU-N14's Throwing Claymores Impact Weapon Makeshift Hammer Piercing Weapon CR-A16's Pointy Stick Build | -11 -10 -9 -9 -7 -6 ------- Run | Yrd Mat Mat Min Zio Pro Slots Evolved 2 | . . 2 . . . Power . | . . . . . . Propulsion . | . . . . . . Utility 2 | . . 2 . . . Weapon . | . . . . . . Parts Attached 43 | 6 9 18 . 7 3 Power 8 | 1 2 3 . . 2 Engine 8 | 1 2 3 . . 2 Core . | . . . . . . Reactor . | . . . . . . Propulsion 10 | 2 4 4 . . . Treads 4 | 2 2 . . . . Leg 6 | . 2 4 . . . Wheel . | . . . . . . Hover . | . . . . . . Flight . | . . . . . . Utility 9 | 1 1 3 . 4 . Device 1 | . . . . 1 . Storage 2 | 1 1 . . . . Processor 5 | . . 2 . 3 . Hackware . | . . . . . . Protection 1 | . . 1 . . . Artifact . | . . . . . . Weapon 16 | 2 2 8 . 3 1 Energy Gun 3 | 2 1 . . . . Energy Cannon . | . . . . . . Ballistic Gun 9 | . 1 8 . . . Ballistic Cannon . | . . . . . . Launcher . | . . . . . . Special Weapon 2 | . . . . 2 . Impact Weapon 1 | . . . . . 1 Slashing Weapon . | . . . . . . Piercing Weapon 1 | . . . . 1 . Special Melee Weapon . | . . . . . . Unidentified Prototypes 3 | . . 1 . 2 . Parts Lost 10 | . 5 4 . . 1 Power 2 | . 1 1 . . . Propulsion 5 | . 2 2 . . 1 Utility . | . . . . . . Weapon 3 | . 2 1 . . . Highest Loss Streak 4 | . 4 3 . . 1 To Critical Strikes . | . . . . . . Average Slot Usage (%) 94 | . 76 86 100 99 98 Engine 10 | . 11 8 11 11 9 Treads 2 | . 20 . . . . Leg 19 | . 1 21 22 22 22 Device 3 | . . . . 7 . Storage 12 | . 19 11 11 11 11 Processor 21 | . . 19 22 22 33 Protection 2 | . . 4 11 2 . Energy Gun 1 | . 14 . . . . Ballistic Gun 7 | . 7 21 22 4 . Special Weapon 5 | . . . . 10 3 Impact Weapon 1 | . . . . . 7 Piercing Weapon 5 | . . . . 6 11 Naked Turns . | . . . . . . Heaviest Build 36 | 14 23 26 26 36 31 Greatest Support 40 | 40 40 23 20 20 20 Greatest Overweight (x) 5 | . 5 1 1 1 1 Average Overweight (x) . | . . . 1 1 . Largest Inventory Capacity 10 | 8 10 10 10 10 10 Average Capacity 9 | 7 9 10 10 10 10 Most Carried 10 | 1 6 10 5 10 10 Average Carried 7 | . 2 5 4 8 9 Final Capacity 10 | 8 10 10 10 10 10 Final Carried 10 | 1 4 4 5 10 10 Class Distribution -------------------- 73% | Scavenger-Mutant 15% | Mutant 11% | Derelict-Mutant Dominant Class ---------------- Mutant | -10/Materials Scavenger-Mutant | -9/Materials Scavenger-Mutant | -9/Mines Scavenger-Mutant | -7/Zion Derelict-Mutant | -6/Proximity Caves Resources | -11 -10 -9 -9 -7 -6 ----------- Run | Yrd Mat Mat Min Zio Pro Matter Collected 798 | 244 139 315 . 33 67 Remotely . | . . . . . . Salvage Created 1143 | 101 556 486 . . . Parts 82 | 5 41 36 . . . Haulers Intercepted 1 | . 1 . . . . Recyclers Shooed 1 | . 1 . . . . Parts Field Recycled . | . . . . . . Retrieved Matter . | . . . . . . Parts Self-Destructed 4 | . . . . . 4 Prevented 1 | . . . . . 1 Kills | -11 -10 -9 -9 -7 -6 ------- Run | Yrd Mat Mat Min Zio Pro Combat Hostiles Destroyed 23 | . 13 10 . . . Guns 22 | . 12 10 . . . AOE 1 | . 1 . . . . Classes Destroyed 10 | 2 5 3 . . . Worker 1 | . . 1 . . . Builder 2 | . 2 . . . . Tunneler 1 | 1 . . . . . Hauler 1 | . 1 . . . . Recycler 1 | 1 . . . . . Watcher 1 | . 1 . . . . Swarmer 6 | . 6 . . . . Grunt 11 | . 7 4 . . . Duelist 1 | . . 1 . . . Sentry 5 | . . 5 . . . Best Kill Streak 11 | 2 11 6 . . . Combat Bots Only 6 | . 4 6 . . . Max Kills in Single Turn 2 | 1 2 1 . . . Gunslinging . | . . . . . . Exploded 1 | . 1 . . . . Melee . | . . . . . . Uniques/NPCs Destroyed . | . . . . . . Combat | -11 -10 -9 -9 -7 -6 -------- Run | Yrd Mat Mat Min Zio Pro Hostile Shots Fired 260 | . 114 132 . . 14 Missed 88 | . 34 52 . . 2 Damage Taken 2276 | 18 967 1072 . . 219 Core 612 | 9 199 362 . . 42 Absorbed by Shields . | . . . . . . Core Remaining (%) 56 | 96 16 . . . . Volleys Fired 134 | 2 86 46 . . . Largest 2 | 2 2 2 . . . Hottest 80 | 80 80 46 . . . Shots Fired 215 | 4 119 92 . . . Gun 215 | 4 119 92 . . . Cannon . | . . . . . . Launcher . | . . . . . . Special . | . . . . . . Kinetic 145 | . 53 92 . . . Thermal . | . . . . . . Explosive . | . . . . . . Electromagnetic 70 | 4 66 . . . . Robot Hit Streak 12 | 4 8 12 . . . Robot Miss Streak 4 | . 4 3 . . . Penetration Max . | . . . . . . Secondary Targets 9 | . 3 6 . . . Max Gunslinging Chain 1 | . 1 1 . . . Shots Hit Robots 146 | 4 75 66 . . 1 Core Hits 59 | 4 30 24 . . 1 Critical Kills . | . . . . . . Critical Parts Destroyed . | . . . . . . Critical Strikes . | . . . . . . Melee Attacks 2 | . . . . . 2 Impact 1 | . . . . . 1 Slashing . | . . . . . . Piercing 1 | . . . . . 1 Sneak Attacks . | . . . . . . Combat Hostiles . | . . . . . . Follow-up Attacks . | . . . . . . Damage Inflicted 1908 | 75 1114 667 . . 52 Guns 1609 | 39 903 667 . . . Cannons . | . . . . . . Explosions 241 | 30 211 . . . . Melee 52 | . . . . . 52 Ramming 6 | 6 . . . . . Kinetic 979 | . 312 667 . . . Thermal 147 | 30 117 . . . . Explosive . | . . . . . . Electromagnetic 724 | 39 685 . . . . Impact 52 | . . . . . 52 Slashing . | . . . . . . Piercing . | . . . . . . Highest Corruption . | . . . . . . Average Corruption . | . . . . . . Corruption Purged . | . . . . . . Corruption Blocked . | . . . . . . Overload Shots . | . . . . . . Overflow Damage . | . . . . . . Projectiles . | . . . . . . Explosions . | . . . . . . Melee . | . . . . . . Knockbacks . | . . . . . . Impact . | . . . . . . Kinetic . | . . . . . . Secondary . | . . . . . . Self-Inflicted Damage 19 | 19 . . . . . Shots 1 | 1 . . . . . Rammed 3 | 3 . . . . . Targets Rammed 3 | 3 . . . . . Kicked . | . . . . . . Crushed . | . . . . . . Highest Temperature 132 | 48 132 7 . . . Average Temperature 43 | 30 49 3 . . . Received Heat Transfer 972 | . 540 420 . . 12 Siege Activations . | . . . . . . Robots Corrupted . | . . . . . . Combat Hostiles . | . . . . . . Parts Fried 2 | . 2 . . . . Impact Corruptions . | . . . . . . Robots Melted . | . . . . . . Combat Hostiles . | . . . . . . Parts Melted . | . . . . . . Heat Transferred 250 | 50 200 . . . . Parts Sabotaged . | . . . . . . Parts Stolen . | . . . . . . Parts Stripped . | . . . . . . Power Chain Reactions 3 | 1 2 . . . . Alert | -11 -10 -9 -9 -7 -6 ------- Run | Yrd Mat Mat Min Zio Pro Peak Influence 348 | 10 348 328 75 . . Initial 83 | . 6 83 75 . . Average 165 | 2 232 173 75 . . Maximum Alert Level 1 | . 1 1 . . . Low Security (%) 66 | 100 40 70 100 . . Level 1 33 | . 59 29 . . . Level 2 . | . . . . . . Level 3 . | . . . . . . Level 4 . | . . . . . . Level 5 . | . . . . . . High Security . | . . . . . . Max Security . | . . . . . . Squads Dispatched 4 | . 3 1 . . . Investigation 2 | . 2 . . . . Extermination . | . . . . . . Reinforcement 2 | . 1 1 . . . Assault . | . . . . . . Garrison . | . . . . . . Intercept . | . . . . . . Searches Triggered . | . . . . . . Construction Impeded . | . . . . . . Haulers Reinforced . | . . . . . . Active Scanning Responses . | . . . . . . Cargo Convoy Interrupts . | . . . . . . Stealth | -11 -10 -9 -9 -7 -6 --------- Run | Yrd Mat Mat Min Zio Pro Distress Signals 3 | . 1 2 . . . Communications Jammed . | . . . . . . Distress Signals . | . . . . . . Times Spotted 40 | . 17 16 . . 7 Peak Tracking Total 7 | . 4 7 . . 4 Tactical Retreats 2 | . . 2 . . . Traps | -11 -10 -9 -9 -7 -6 ------- Run | Yrd Mat Mat Min Zio Pro Traps Triggered 1 | . 1 . . . . Indirectly . | . . . . . . Trap Hack Attempts . | . . . . . . Triggered . | . . . . . . Disarmed . | . . . . . . Reprogrammed . | . . . . . . Reused . | . . . . . . Traps Extracted . | . . . . . . Installed . | . . . . . . Triggered 1 | . . . . . 1 Machines | -11 -10 -9 -9 -7 -6 ---------- Run | Yrd Mat Mat Min Zio Pro Machines Disabled 2 | . 2 . . . . Max in Single Turn 1 | . 1 . . . . Machines Repaired . | . . . . . . Machines Dismantled . | . . . . . . Machines Sabotaged . | . . . . . . Overloaded Fab Kills . | . . . . . . Hacking | -11 -10 -9 -9 -7 -6 --------- Run | Yrd Mat Mat Min Zio Pro Machines Accessed 5 | . 2 2 . . 1 Terminals 3 | . 1 1 . . 1 Fabricators . | . . . . . . Repair Stations . | . . . . . . Recycling Units 1 | . 1 . . . . Scanalyzers 1 | . . 1 . . . Garrison Access . | . . . . . . Total Hacks 12 | . 7 4 . . 1 Successful 8 | . 5 2 . . 1 Failed 4 | . 2 2 . . . Catastrophic . | . . . . . . Database Lockouts . | . . . . . . Manual 6 | . 3 2 . . 1 Terminals 6 | . 3 2 . . 1 Fabricators . | . . . . . . Repair Stations . | . . . . . . Recycling Units 4 | . 4 . . . . Scanalyzers 2 | . . 2 . . . Garrison Access . | . . . . . . Terminal Hacks 4 | . 3 . . . 1 Record 1 | . . . . . 1 Prototype ID Bank 1 | . 1 . . . . Level Access Points 1 | . 1 . . . . Branch Access Points 1 | . 1 . . . . Fabricator Hacks . | . . . . . . Repair Station Hacks . | . . . . . . Recycling Unit Hacks 1 | . 1 . . . . Retrieve Components 1 | . 1 . . . . Scanalyzer 2 | . . 2 . . . Insert Component 1 | . . 1 . . . Analyze 1 | . . 1 . . . Garrison Access Hacks . | . . . . . . Unauthorized Hacks 1 | . 1 . . . . Terminals . | . . . . . . Fabricators . | . . . . . . Repair Stations . | . . . . . . Recycling Units 1 | . 1 . . . . Tunnel 1 | . 1 . . . . Scanalyzers . | . . . . . . Garrison Access . | . . . . . . Data Cores Recovered . | . . . . . . Used . | . . . . . . Hacking Detections 2 | . 1 1 . . . Full Trace Events . | . . . . . . Feedback Events . | . . . . . . Feedback Blocked . | . . . . . . Robot Schematics Acquired . | . . . . . . Robots Built . | . . . . . . Authchips . | . . . . . . Time . | . . . . . . Total Robot Build Rating . | . . . . . . Part Schematics Acquired 1 | . . 1 . . . Parts Built . | . . . . . . Authchips . | . . . . . . Time . | . . . . . . Total Part Build Rating . | . . . . . . Parts Repaired . | . . . . . . Time . | . . . . . . Parts Recycled . | . . . . . . Recycled Matter . | . . . . . . Retrieved Matter . | . . . . . . Retrieved Components 1 | . 1 . . . . Parts Scanalyzed 1 | . . 1 . . . Part Schematics Acquired 1 | . . 1 . . . Parts Damaged . | . . . . . . Bothacking | -11 -10 -9 -9 -7 -6 ------------ Run | Yrd Mat Mat Min Zio Pro Used RIF Installer . | . . . . . . Robots Hacked . | . . . . . . Non-combat . | . . . . . . Combat . | . . . . . . Robot Hacks Applied . | . . . . . . Relay Couplers Released . | . . . . . . Fabnet Peak Effective % . | . . . . . . Robots Rewired . | . . . . . . Allies Hacked . | . . . . . . Hacks Repelled . | . . . . . . Allies | -11 -10 -9 -9 -7 -6 -------- Run | Yrd Mat Mat Min Zio Pro Total Allies 5 | . . . 1 4 . Largest Group 4 | . . . 1 4 4 Highest-Rated Group 147 | . . . 31 147 147 Highest-Rated Ally 38 | . . . 31 38 38 Total Orders . | . . . . . . Ally Attacks 22 | . . . . . 22 Total Damage 517 | . . . . . 517 Kills 4 | . . . . . 4 Allies Corrupted . | . . . . . . Allies Melted . | . . . . . . Intel | -11 -10 -9 -9 -7 -6 ------- Run | Yrd Mat Mat Min Zio Pro Robot Analysis Total . | . . . . . . Derelict Logs Recovered 1 | . . . . 1 . Drone Launches . | . . . . . . Drone Recoveries . | . . . . . . Exploration | -11 -10 -9 -9 -7 -6 ------------- Run | Yrd Mat Mat Min Zio Pro Turns Passed 3682 | 104 462 491 195 1825 605 Spaces Moved 1824 | 56 160 228 99 949 332 Core 7 | 5 2 . . . . Treads 187 | 51 136 . . . . Legs 1630 | . 22 228 99 949 332 Wheels . | . . . . . . Hover . | . . . . . . Flight . | . . . . . . Fastest Speed 50 | 50 120 120 190 190 120 Average Speed 178 | 150 157 146 190 190 177 Slowest Speed 300 | 160 300 190 190 190 190 Overloaded Moves . | . . . . . . Propulsion Burnouts . | . . . . . . Robots Hopped . | . . . . . . Cave-ins Triggered . | . . . . . . Exploration Rate (%) 36 | 5 37 21 23 84 48 Regions Visited 5 Branch Regions 3 Pre-discovered Areas 3 | . 1 . . 2 . Known Exits Taken 2 | . 1 1 . . . Unknown Exits Taken 3 | 1 . . 1 1 . Scrap Searched 3 | . . . . 1 2 Spaces Dug . | . . . . . . Terrain Destroyed 1 | . 1 . . . . Melee . | . . . . . . Projectile . | . . . . . . AOE 1 | . 1 . . . . Terrain Rammed . | . . . . . . Walls Destroyed . | . . . . . . Machines Disabled . | . . . . . . Actions | -11 -10 -9 -9 -7 -6 --------- Run | Yrd Mat Mat Min Zio Pro Total 2057 | 67 260 306 106 973 345 Wait 10 | . . . 7 3 . Move 1820 | 56 159 227 98 948 332 Hop . | . . . . . . Pick Up 12 | 1 2 2 1 5 1 Fast Attach 28 | 6 6 7 . 7 2 Attach 5 | . 1 4 . . . Detach 13 | . 2 4 . 5 2 Swap 10 | . 2 7 . . 1 Drop 21 | . 2 9 . 5 5 Fire 134 | 2 86 46 . . . Melee 2 | . . . . . 2 Ram . | . . . . . . Kick . | . . . . . . Crush 2 | 2 . . . . . Escape Stasis . | . . . . . . Rewire . | . . . . . . Trap . | . . . . . . Miscellaneous . | . . . . . . Route ------- -11/Scrapyard -10/Materials (discovered 5 exits: *Mat x3 / Min x2) -9/Materials -9/Mines -7/Zion -6/Proximity Caves History --------- Turn | Location | Event 25 | -11/Scrapyard | Discovered new exit (range 15) 105 | -11/Scrapyard | Entered Materials 307 | -10/Materials | Identified exit to Mines 307 | -10/Materials | Identified exit to Materials 313 | -10/Materials | Build established: Mutant 404 | -10/Materials | Core integrity fell below 50% 414 | -10/Materials | Lost 4 parts (1p2n1w) 520 | -10/Materials | Core integrity fell below 20% 567 | -10/Materials | Entered another Materials area 567 | -9/Materials | Evolved 2 slots: Utility x2 771 | -9/Materials | Core integrity fell below 50% 829 | -9/Materials | Core integrity fell below 20% 840 | -9/Materials | Lost 3 parts (2n1w) 900 | -9/Materials | Discovered new exit (range 18) 1047 | -9/Materials | Identified exit to Mines 1058 | -9/Materials | Entered Mines 1061 | -9/Mines | Received a Mining Laser from a helpful Derelict 1134 | -9/Mines | Build established: Scavenger-Mutant 1251 | -9/Mines | A Derelict revealed a hidden shortcut to a safe place 1253 | -9/Mines | Entered Zion 1253 | -7/Zion | Accompanied by 1 ally 1361 | -7/Zion | Learned location of Data Miner (-6) 1388 | -7/Zion | Learned location of Warlord (-5) 1624 | -7/Zion | Found Prototype Special Weapon 1624 | -7/Zion | Identified RU-N14's Throwing Claymores 1628 | -7/Zion | Found RU-N14's Throwing Claymores 1631 | -7/Zion | Found RU-N14's Throwing Claymores 1634 | -7/Zion | Found RU-N14's Throwing Claymores 1739 | -7/Zion | Given the Hacking Drone Bay 1748 | -7/Zion | Found Prototype Device 1748 | -7/Zion | Identified Hacking Drone Bay 1932 | -7/Zion | Found CR-A16's Pointy Stick 2133 | -7/Zion | Given A8's code to call for help 2334 | -7/Zion | Imprinted 2336 | -7/Zion | Declared Zion's savior 3050 | -7/Zion | Discovered new exit (range 15) 3078 | -7/Zion | Entered Proximity Caves 3078 | -6/Proximity Caves | Accompanied by 4 allies 3081 | -6/Proximity Caves | Spotter reported a threat 3545 | -6/Proximity Caves | Build established: Derelict-Mutant 3578 | -6/Proximity Caves | Spotted B-75 Beast 3594 | -6/Proximity Caves | Allies destroyed B-75 Beast 3683 | -6/Proximity Caves | Destroyed by S-27 Virus with Autogun Last Messages --------------- .sisT3m C0rRvpTE_ 03519_ Searching scrap... 03519_ Found Imp. Targeting Computer. 03519_ Found Adv. Assault Cannon. 03519_ Found 28 Matter. 03520_ Acquired 20 matter. 03585_ B-75 Beast suffers critical hit (Burn). 03588_ Chain reaction triggered in Rnf. Deuterium Engine. 03590_ TP-Z3C(M) Riot Gun blasted off. 03593_ IJ-7HS(M) Arm. Treads blasted off. 03593_ IJ-7HS(M) destroyed. 03594_ B-75 Beast destroyed. 03597_ Dropped Lgt. Deuterium Engine. 03599_ Acquired 10 matter. 03601_ Imp. Medium Treads fries itself beyond repair. 03612_ Dropped Rnf. Deuterium Engine. 03680_ S-27 Virus destroyed. 03681_ Aluminum Leg destroyed. Map ----- +----------------------------------------------------+ | ?#### ########???????????????????????????????? | | ###### ###??????????????????????????????????????? | | # #???#####????????????????????????????????? | | ## ##### #????????????????????????????????? | | ??# #????????????????????????????????? | | ???# #?????????????????????????????????? | | ????# #?????????????????????????????????? | | ????# # #?????????????????????????????????? | | ???# ####### #?????????????????????????????????? | | ? ####### #?????????????????????????????????? | | ## #?????????????????????????????????? | | ?# * [%$ ##????????????????????????????????? | | ?# % =* ##???????????????????????????????? | | # % #???????????????????????????????? | | #####????????????? ?????????????? | | #???????????? ?????????????? | | ## ### ## #??????????? ??????????????? | | ?# ??# ## ### #???######## ??????????????? | | ### ??# ####?# #?### ???????????????? | | # ### ##???# #?# ?????????????????? | | "# ##??# ### ??????????????????? | | ?#" # #### #???????????????????? | | ?#" # #???????????????????? | | ?# # #?? ?? ???????????? | | ### ### ## ## #?????????????? | | # # ## ## @s #??????????????? | | ## ""## s #???????????????? | | ?# = #### #???????????????? | | ?###### %% s M##?????????????????????? | | ??????#"" ;;# =%##??????????????????????? | | ??????##""""### M M [#???????????????????????? | | ???????## # ###???????????????????????? | | ????????### #?????????????????????????? | | ??????????# #### #?????????????????????????? | | ????????? #??# ##????????????????????????? | | ??????? ####??## ### #????????????????????????? | | ??????# ????????###?# #????????????????????????? | | ????????????????????#####????????????????????????? | | ?????????????????????????????????????????????????? | | ?????????????????????????????????????????????????? | | ?????????????????????????????????????????????????? | | ?????????????????????????????????????????????????? | | ?????????????????????????????????????????????????? | | ?????????????????????????????????????????????????? | | ?????????????????????????????????????????????????? | | ?????????????????????????????????????????????????? | | ?????????????????????????????????????????????????? | | ?????????????????????????????????????????????????? | | ?????????????????????????????????????????????????? | | ?????????????????????????????????????????????????? | +----------------------------------------------------+ Best States ------------- Heat Dissipation 28 Energy Generation 16 Energy Capacity 290 Matter Stores 300 Matter Capacity 300 Sight Range 18 Terrain Scan Density 10 Armor Coverage 150 Evasion (%) 55 Recoil Reduction 2 Item Schematics ----------------- Ion Engine | -9/Materials | Scanalyzed Robot Schematics ------------------ None Fabricated ------------ Nothing Alien Tech Used ----------------- None Achievements -------------- None Challenges ------------ None Game ------ Seed ParticleTrapNanovents Manual? 0 Play Time 00:30:20 Cumulative 22.0 hours Start 2024.04.05 @ 16:41:08 End 2024.04.05 @ 17:15:04 Sessions 1 Manual Loads 0 Difficulty Rogue Special Mode None Game No. 62 Rogue 60 Adventurer 2 Explorer 0 Win Type - Total 0 Types 0/0/0/0/0/0/0/0/0 Lore% 19 Gallery% 24 Achievement% 21 Wizard Run 0 Options --------- Layout 1 ASCII 0 Keyboard 1 Movement Arrows Keybinds 0 Fullscreen 2 Font 24/Smallcaps Map View 50x35 Zoom Use 0% Tactical HUD 1 Map Filters NONE Filters NONE Steam 1 RUN: 2340d438-6996-4937-9312-7209aaad91f1